[Event "*** MasterClass Titled Tuesday Blitz"]
[Site "Chess.com"]
[Date "2017.12.05"]
[Round "10"]
[White "calemcc"]
[Black "Scott-fox21"]
[Result "1-0"]
[WhiteElo "2265"]
[BlackElo "2184"]
[TimeControl "180+2"]
[EndTime "16:28:53 PST"]
[Termination "calemcc won by resignation"]

1. d4 {[%clk 0:03:01.9]} 1... d5 {[%clk 0:03:00.2]} 2. c4 {[%clk 0:03:02]} 2...
e6 {[%clk 0:03:00.8]} 3. Nc3 {[%clk 0:03:01.9]} 3... c6 {[%clk 0:03:01.9]} 4. e3
{[%clk 0:03:02.6]} 4... Nf6 {[%clk 0:03:02.2]} 5. Nf3 {[%clk 0:03:04.1]} 5... a6
{[%clk 0:03:03.1]} 6. Bd3 {[%clk 0:03:01]} 6... c5 {[%clk 0:03:02]} 7. cxd5
{[%clk 0:02:59.5]} 7... exd5 {[%clk 0:03:02.4]} 8. O-O {[%clk 0:03:00]} 8... Nc6
{[%clk 0:03:02.4]} 9. dxc5 {[%clk 0:02:55.6]} 9... Bxc5 {[%clk 0:03:02.8]} 10.
Ne2 {[%clk 0:02:56]} 10... O-O {[%clk 0:03:02.9]} 11. Ned4 {[%clk 0:02:52.6]}
11... Bg4 {[%clk 0:03:03.3]} 12. Be2 {[%clk 0:02:52.8]} 12... Bxf3 {[%clk
0:02:44]} 13. Nxf3 {[%clk 0:02:46.8]} 13... d4 {[%clk 0:02:44.5]} 14. exd4
{[%clk 0:02:43.9]} 14... Nxd4 {[%clk 0:02:45.3]} 15. Bc4 {[%clk 0:02:40.5]}
15... Ng4 {[%clk 0:02:36.3]} 16. Bg5 {[%clk 0:02:33.9]} 16... Nxf3+ {[%clk
0:02:34.9]} 17. gxf3 {[%clk 0:02:30]} 17... Nxf2 {[%clk 0:02:13.9]} 18. Qxd8
{[%clk 0:02:24.2]} 18... Raxd8 {[%clk 0:01:30.4]} 19. Bxd8 {[%clk 0:02:23.3]}
19... Nh3+ {[%clk 0:01:18.8]} 20. Kg2 {[%clk 0:02:19.6]} 20... Nf4+ {[%clk
0:01:19.8]} 21. Kg3 {[%clk 0:02:19.9]} 21... Nh5+ {[%clk 0:01:20.4]} 22. Kh4
{[%clk 0:02:20.4]} 22... Rxd8 {[%clk 0:01:14.5]} 23. Kxh5 {[%clk 0:02:20.7]}
23... Rd4 {[%clk 0:01:15]} 24. f4 {[%clk 0:02:01.5]} 24... Rxc4 {[%clk
0:01:15.7]} 25. Rac1 {[%clk 0:02:02.7]} 25... g6+ {[%clk 0:01:15.2]} 26. Kg4
{[%clk 0:02:02.9]} 26... h5+ {[%clk 0:01:06.2]} 27. Kf3 {[%clk 0:02:02.4]} 27...
Rxc1 {[%clk 0:01:00.1]} 28. Rxc1 {[%clk 0:02:04.3]} 28... b6 {[%clk 0:01:01.2]}
29. Ke4 {[%clk 0:02:03.2]} 29... Kg7 {[%clk 0:01:02.2]} 30. a3 {[%clk
0:02:02.5]} 30... a5 {[%clk 0:01:02.5]} 31. Kd5 {[%clk 0:02:02]} 31... Kf6
{[%clk 0:01:02.5]} 32. Rc4 {[%clk 0:02:00.6]} 32... Kf5 {[%clk 0:01:03.2]} 33.
b4 {[%clk 0:02:01]} 33... axb4 {[%clk 0:00:59.7]} 34. axb4 {[%clk 0:02:02.9]}
34... Be3 {[%clk 0:01:00.3]} 35. Kc6 {[%clk 0:02:00.2]} 35... h4 {[%clk
0:00:57.1]} 36. h3 {[%clk 0:02:00.6]} 36... f6 {[%clk 0:00:51.8]} 37. b5 {[%clk
0:01:57.6]} 37... Bxf4 {[%clk 0:00:44.3]} 38. Kxb6 {[%clk 0:01:55.6]} 38... Be3+
{[%clk 0:00:36.3]} 39. Kc6 {[%clk 0:01:56.6]} 39... g5 {[%clk 0:00:37.5]} 40. b6
{[%clk 0:01:57.3]} 40... Bf4 {[%clk 0:00:29.3]} 41. Rxf4+ {[%clk 0:01:55.1]}
41... gxf4 {[%clk 0:00:27.5]} 42. b7 {[%clk 0:01:57]} 42... f3 {[%clk
0:00:25.2]} 43. b8=Q {[%clk 0:01:57.5]} 43... Ke4 {[%clk 0:00:26.5]} 44. Qb2
{[%clk 0:01:55.4]} 44... Ke3 {[%clk 0:00:27.2]} 45. Qc1+ {[%clk 0:01:55.3]}
45... Kf2 {[%clk 0:00:27.9]} 46. Kd5 {[%clk 0:01:54.2]} 46... Kg2 {[%clk
0:00:28.8]} 47. Ke6 {[%clk 0:01:42.5]} 47... f2 {[%clk 0:00:29.7]} 48. Qc6+
{[%clk 0:01:42.7]} 48... Kg1 {[%clk 0:00:29.1]} 49. Qc5 {[%clk 0:01:43.3]} 49...
Kg2 {[%clk 0:00:29.2]} 50. Qd5+ {[%clk 0:01:44.7]} 50... Kg1 {[%clk 0:00:30]}
51. Qd4 {[%clk 0:01:46.1]} 51... Kg2 {[%clk 0:00:25.6]} 52. Qe4+ {[%clk
0:01:47.3]} 52... Kg1 {[%clk 0:00:27]} 53. Qe3 {[%clk 0:01:47.5]} 53... Kg2
{[%clk 0:00:28.5]} 54. Qe2 {[%clk 0:01:48.4]} 54... Kg1 {[%clk 0:00:29.3]} 55.
Qg4+ {[%clk 0:01:49.2]} 55... Kh1 {[%clk 0:00:27]} 56. Qf3+ {[%clk 0:01:45.1]}
56... Kg1 {[%clk 0:00:28.2]} 57. Kxf6 {[%clk 0:01:33]} 57... f1=Q {[%clk
0:00:28.8]} 58. Qxf1+ {[%clk 0:01:34.6]} 58... Kxf1 {[%clk 0:00:30.2]} 59. Kg5
{[%clk 0:01:36.3]} 59... Ke2 {[%clk 0:00:25.4]} 60. Kxh4 {[%clk 0:01:37.8]}
60... Kd3 {[%clk 0:00:26.7]} 61. Kg5 {[%clk 0:01:39.3]} 61... Kd4 {[%clk
0:00:28]} 62. h4 {[%clk 0:01:39.2]} 62... Kd5 {[%clk 0:00:29.2]} 63. h5 {[%clk
0:01:40.2]} 63... Ke6 {[%clk 0:00:30.4]} 64. Kg6 {[%clk 0:01:42.1]} 64... Ke7
{[%clk 0:00:28]} 65. Kg7 {[%clk 0:01:43.4]} 65... Ke8 {[%clk 0:00:28.7]} 66. h6
{[%clk 0:01:45.3]} 1-0

[Event "*** MasterClass Titled Tuesday Blitz"]
[Site "Chess.com"]
[Date "2017.12.05"]
[Round "10"]
[White "Tash_Boy"]
[Black "TregubovP"]
[Result "0-1"]
[WhiteElo "2430"]
[BlackElo "2509"]
[TimeControl "180+2"]
[EndTime "16:29:30 PST"]
[Termination "TregubovP won by resignation"]

1. e4 {[%clk 0:03:01.9]} 1... c5 {[%clk 0:03:00.5]} 2. Nf3 {[%clk 0:03:02]} 2...
e6 {[%clk 0:03:01.3]} 3. d4 {[%clk 0:03:03]} 3... cxd4 {[%clk 0:03:01.4]} 4.
Nxd4 {[%clk 0:03:04.6]} 4... Nc6 {[%clk 0:03:02.8]} 5. Nc3 {[%clk 0:03:04.1]}
5... Nf6 {[%clk 0:03:04.3]} 6. Ndb5 {[%clk 0:03:03.8]} 6... Bb4 {[%clk
0:03:03.8]} 7. Bf4 {[%clk 0:03:04]} 7... e5 {[%clk 0:02:48]} 8. Bg5 {[%clk
0:02:57.4]} 8... O-O {[%clk 0:02:47]} 9. a3 {[%clk 0:02:51.5]} 9... Bxc3+ {[%clk
0:02:39.2]} 10. Nxc3 {[%clk 0:02:51.3]} 10... h6 {[%clk 0:02:40.5]} 11. Bh4
{[%clk 0:02:50]} 11... d6 {[%clk 0:02:38]} 12. Be2 {[%clk 0:02:45.8]} 12... Be6
{[%clk 0:02:36.6]} 13. O-O {[%clk 0:02:43.1]} 13... g5 {[%clk 0:02:35.1]} 14.
Bg3 {[%clk 0:02:42.5]} 14... d5 {[%clk 0:02:36.7]} 15. exd5 {[%clk 0:02:41.1]}
15... Nxd5 {[%clk 0:02:37.6]} 16. Nxd5 {[%clk 0:02:35.3]} 16... Qxd5 {[%clk
0:02:31.6]} 17. Qxd5 {[%clk 0:01:52.9]} 17... Bxd5 {[%clk 0:02:31.9]} 18. Rad1
{[%clk 0:01:54.3]} 18... Rad8 {[%clk 0:02:29.7]} 19. Bb5 {[%clk 0:01:52.1]}
19... f6 {[%clk 0:02:27.1]} 20. Bxc6 {[%clk 0:01:48.9]} 20... Bxc6 {[%clk
0:02:25.8]} 21. f3 {[%clk 0:01:50.3]} 21... Kf7 {[%clk 0:02:22]} 22. Bf2 {[%clk
0:01:50.9]} 22... a6 {[%clk 0:02:22]} 23. Bb6 {[%clk 0:01:47.8]} 23... Rxd1
{[%clk 0:02:16.8]} 24. Rxd1 {[%clk 0:01:49.7]} 24... Rc8 {[%clk 0:02:17.8]} 25.
c3 {[%clk 0:01:49]} 25... Ke6 {[%clk 0:02:17.4]} 26. Kf2 {[%clk 0:01:49.7]}
26... Bd5 {[%clk 0:02:17.5]} 27. Ke3 {[%clk 0:01:45.4]} 27... Rc6 {[%clk
0:02:18.3]} 28. Bd8 {[%clk 0:01:37.8]} 28... Bb3 {[%clk 0:02:11.2]} 29. Rd2
{[%clk 0:01:34.1]} 29... f5 {[%clk 0:02:02.9]} 30. g3 {[%clk 0:01:21.6]} 30...
Bd5 {[%clk 0:01:48.2]} 31. Kf2 {[%clk 0:01:13.2]} 31... Rc4 {[%clk 0:01:40.2]}
32. Bb6 {[%clk 0:01:11.7]} 32... h5 {[%clk 0:01:34.4]} 33. Ba5 {[%clk
0:01:10.8]} 33... g4 {[%clk 0:01:34.4]} 34. fxg4 {[%clk 0:01:05.5]} 34... hxg4
{[%clk 0:01:34.3]} 35. b3 {[%clk 0:01:04.5]} 35... Rc5 {[%clk 0:01:25.9]} 36.
Bb4 {[%clk 0:01:01.7]} 36... Rc6 {[%clk 0:01:16.3]} 37. c4 {[%clk 0:01:02.3]}
37... Be4 {[%clk 0:01:17.3]} 38. Ke3 {[%clk 0:01:03.1]} 38... b6 {[%clk
0:01:15.2]} 39. a4 {[%clk 0:01:02.2]} 39... a5 {[%clk 0:01:05.6]} 40. Ba3 {[%clk
0:01:02.8]} 40... Bf3 {[%clk 0:01:05.8]} 41. Rd8 {[%clk 0:01:02]} 41... Be4
{[%clk 0:01:00.3]} 42. Rd2 {[%clk 0:00:59.8]} 42... Bf3 {[%clk 0:00:52.6]} 43.
h4 {[%clk 0:00:59.8]} 43... Be4 {[%clk 0:00:47.3]} 44. Rh2 {[%clk 0:00:50.6]}
44... Rc7 {[%clk 0:00:41.5]} 45. h5 {[%clk 0:00:51]} 45... Rd7 {[%clk
0:00:36.9]} 46. Rd2 {[%clk 0:00:49.1]} 46... f4+ {[%clk 0:00:34]} 47. gxf4
{[%clk 0:00:46.7]} 47... exf4+ {[%clk 0:00:34.9]} 48. Ke2 {[%clk 0:00:47.9]}
48... f3+ {[%clk 0:00:22.8]} 49. Ke3 {[%clk 0:00:48.9]} 49... Rxd2 {[%clk
0:00:21.8]} 50. Kxd2 {[%clk 0:00:50.1]} 50... f2 {[%clk 0:00:21.3]} 51. Ke2
{[%clk 0:00:51.3]} 51... g3 {[%clk 0:00:22.4]} 52. h6 {[%clk 0:00:52.2]} 52...
Bd3+ {[%clk 0:00:22.5]} 53. Ke3 {[%clk 0:00:52.1]} 53... f1=Q {[%clk 0:00:20.8]}
54. h7 {[%clk 0:00:54]} 54... Bxh7 {[%clk 0:00:18.3]} 0-1

[Event "*** MasterClass Titled Tuesday Blitz"]
[Site "Chess.com"]
[Date "2017.12.05"]
[Round "10"]
[White "tteshan"]
[Black "HolyInquisitor0001"]
[Result "1-0"]
[WhiteElo "2035"]
[BlackElo "1674"]
[TimeControl "180+2"]
[EndTime "16:29:32 PST"]
[Termination "tteshan won by resignation"]

1. d4 {[%clk 0:03:01.5]} 1... Nf6 {[%clk 0:02:57]} 2. c4 {[%clk 0:03:02.5]} 2...
g6 {[%clk 0:02:57.9]} 3. Nc3 {[%clk 0:03:03.7]} 3... Bg7 {[%clk 0:02:59.3]} 4.
e4 {[%clk 0:03:05.2]} 4... d6 {[%clk 0:03:00.1]} 5. Be2 {[%clk 0:03:06.7]} 5...
O-O {[%clk 0:03:01.3]} 6. Bg5 {[%clk 0:03:08]} 6... h6 {[%clk 0:03:01]} 7. Be3
{[%clk 0:03:08.8]} 7... Nc6 {[%clk 0:03:00.7]} 8. Qd2 {[%clk 0:03:02.1]} 8...
Kh7 {[%clk 0:02:58.1]} 9. h4 {[%clk 0:02:56.6]} 9... Ng4 {[%clk 0:02:45.9]} 10.
Bxg4 {[%clk 0:02:53.8]} 10... Bxg4 {[%clk 0:02:46.4]} 11. f3 {[%clk 0:02:55.3]}
11... Bd7 {[%clk 0:02:44.7]} 12. g4 {[%clk 0:02:47.6]} 12... e5 {[%clk
0:02:39.7]} 13. d5 {[%clk 0:02:45]} 13... Na5 {[%clk 0:02:15.9]} 14. Qd3 {[%clk
0:02:38.2]} 14... c5 {[%clk 0:01:59.5]} 15. Nge2 {[%clk 0:02:24]} 15... Kg8
{[%clk 0:01:48.3]} 16. Ng1 {[%clk 0:02:22.8]} 16... a6 {[%clk 0:01:46.3]} 17. b3
{[%clk 0:02:22.2]} 17... Rb8 {[%clk 0:01:40.6]} 18. Qd2 {[%clk 0:02:22.4]} 18...
b5 {[%clk 0:01:37]} 19. cxb5 {[%clk 0:02:22.9]} 19... axb5 {[%clk 0:01:36]} 20.
Bxh6 {[%clk 0:02:22.4]} 20... b4 {[%clk 0:01:18.7]} 21. Nce2 {[%clk 0:02:21.2]}
21... f6 {[%clk 0:00:54.3]} 22. Bxg7 {[%clk 0:02:21.2]} 22... Kxg7 {[%clk
0:00:54.2]} 23. h5 {[%clk 0:02:22.6]} 23... g5 {[%clk 0:00:52.9]} 24. Ng3 {[%clk
0:02:16.6]} 24... Kh6 {[%clk 0:00:42.4]} 25. N1e2 {[%clk 0:02:00]} 25... Bb5
{[%clk 0:00:39.9]} 26. Nf5+ {[%clk 0:02:00]} 26... Kh7 {[%clk 0:00:41]} 27. Ng1
{[%clk 0:01:57.1]} 27... Qb6 {[%clk 0:00:41.7]} 28. Nh3 {[%clk 0:01:46.6]} 28...
Bd7 {[%clk 0:00:42.2]} 29. Ne7 {[%clk 0:01:44.3]} 29... Rb7 {[%clk 0:00:36.7]}
30. Ng6 {[%clk 0:01:45.1]} 30... Ra8 {[%clk 0:00:34.4]} 31. Rb1 {[%clk
0:01:14.6]} 31... Qd8 {[%clk 0:00:31.5]} 32. Nf2 {[%clk 0:01:12.1]} 32... Rba7
{[%clk 0:00:30.1]} 33. Rb2 {[%clk 0:01:12.3]} 33... Nb7 {[%clk 0:00:30]} 34. Nd3
{[%clk 0:01:05.4]} 34... Ra3 {[%clk 0:00:27.6]} 35. Nc1 {[%clk 0:01:04.6]} 35...
R8a6 {[%clk 0:00:24.3]} 36. Qh2 {[%clk 0:00:59.3]} 36... Kh6 {[%clk 0:00:22.8]}
37. Qd2 {[%clk 0:00:52.2]} 37... Qe8 {[%clk 0:00:18.5]} 38. Nh4 {[%clk
0:00:51.7]} 38... Kh7 {[%clk 0:00:16.3]} 39. Nf5 {[%clk 0:00:52.3]} 39... Qd8
{[%clk 0:00:14.5]} 40. Qh2 {[%clk 0:00:49.3]} 40... Qf8 {[%clk 0:00:14.2]} 41.
h6 {[%clk 0:00:48.5]} 41... Be8 {[%clk 0:00:14.2]} 42. Ng7 {[%clk 0:00:46.1]}
42... Bg6 {[%clk 0:00:14.4]} 43. Ne6 {[%clk 0:00:45.5]} 43... Qe7 {[%clk
0:00:15.1]} 44. Qe2 {[%clk 0:00:37.6]} 44... Qd7 {[%clk 0:00:13.1]} 45. Nf8+
{[%clk 0:00:34.8]} 1-0

[Event "*** MasterClass Titled Tuesday Blitz"]
[Site "Chess.com"]
[Date "2017.12.05"]
[Round "10"]
[White "johannesh"]
[Black "Vamostodorecto"]
[Result "1/2-1/2"]
[WhiteElo "2306"]
[BlackElo "2330"]
[TimeControl "180+2"]
[EndTime "16:30:26 PST"]
[Termination "Game drawn - insufficient material"]

1. d4 {[%clk 0:02:17.8]} 1... Nf6 {[%clk 0:02:55.3]} 2. c4 {[%clk 0:02:13.6]}
2... g6 {[%clk 0:02:55.3]} 3. Nf3 {[%clk 0:02:13.8]} 3... Bg7 {[%clk 0:02:54.3]}
4. g3 {[%clk 0:02:12.3]} 4... d5 {[%clk 0:02:55.2]} 5. cxd5 {[%clk 0:02:09.7]}
5... Nxd5 {[%clk 0:02:57.1]} 6. Bg2 {[%clk 0:02:10.2]} 6... O-O {[%clk
0:02:57.8]} 7. O-O {[%clk 0:02:10.5]} 7... Nb6 {[%clk 0:02:59.7]} 8. Nc3 {[%clk
0:02:09.7]} 8... Nc6 {[%clk 0:03:01.2]} 9. e3 {[%clk 0:02:03.1]} 9... a5 {[%clk
0:03:01.7]} 10. b3 {[%clk 0:02:00.4]} 10... Bg4 {[%clk 0:03:01.4]} 11. h3 {[%clk
0:01:57.2]} 11... Bd7 {[%clk 0:02:56.9]} 12. Bb2 {[%clk 0:01:54.7]} 12... Qc8
{[%clk 0:02:58.4]} 13. Kh2 {[%clk 0:01:54.5]} 13... Rd8 {[%clk 0:03:00]} 14. Qe2
{[%clk 0:01:53.6]} 14... a4 {[%clk 0:02:59.3]} 15. d5 {[%clk 0:01:36.7]} 15...
a3 {[%clk 0:02:20.7]} 16. dxc6 {[%clk 0:01:25.9]} 16... Bxc6 {[%clk 0:02:22.6]}
17. Rfd1 {[%clk 0:01:13.7]} 17... axb2 {[%clk 0:02:21.1]} 18. Qxb2 {[%clk
0:01:15.6]} 18... Qf5 {[%clk 0:02:12.1]} 19. Nd4 {[%clk 0:01:12.7]} 19... Bxd4
{[%clk 0:01:50.2]} 20. exd4 {[%clk 0:01:14.6]} 20... Bxg2 {[%clk 0:01:49.3]} 21.
Kxg2 {[%clk 0:01:16.3]} 21... Nd5 {[%clk 0:01:50.4]} 22. Nxd5 {[%clk 0:00:59.7]}
22... Rxd5 {[%clk 0:01:52.3]} 23. Qc3 {[%clk 0:00:58.2]} 23... c6 {[%clk
0:01:50.6]} 24. Rd2 {[%clk 0:00:51.5]} 24... Rad8 {[%clk 0:01:48]} 25. Rad1
{[%clk 0:00:51.4]} 25... Qe4+ {[%clk 0:01:47]} 26. Kg1 {[%clk 0:00:50.8]} 26...
e5 {[%clk 0:01:44.5]} 27. Qe3 {[%clk 0:00:39.6]} 27... Qf5 {[%clk 0:01:37.5]}
28. dxe5 {[%clk 0:00:39.2]} 28... Rxd2 {[%clk 0:01:20]} 29. Rxd2 {[%clk
0:00:41.1]} 29... Rxd2 {[%clk 0:01:18.6]} 30. Qxd2 {[%clk 0:00:41.6]} 30... Qxe5
{[%clk 0:01:20.3]} 31. h4 {[%clk 0:00:40.2]} 31... h5 {[%clk 0:01:20]} 32. Kh2
{[%clk 0:00:32.4]} 32... Kg7 {[%clk 0:01:20]} 33. a4 {[%clk 0:00:32.2]} 33...
Qf6 {[%clk 0:01:14.2]} 34. a5 {[%clk 0:00:31.9]} 34... Qf5 {[%clk 0:01:08.8]}
35. b4 {[%clk 0:00:32.1]} 35... f6 {[%clk 0:01:03.3]} 36. Qe2 {[%clk 0:00:24.5]}
36... Kh6 {[%clk 0:01:00.4]} 37. Qe3+ {[%clk 0:00:24.4]} 37... g5 {[%clk
0:01:01.1]} 38. Kg2 {[%clk 0:00:15.9]} 38... Kg6 {[%clk 0:01:00.8]} 39. hxg5
{[%clk 0:00:15.4]} 39... fxg5 {[%clk 0:00:58.6]} 40. Qe8+ {[%clk 0:00:16.3]}
40... Qf7 {[%clk 0:00:59.4]} 41. Qe4+ {[%clk 0:00:17.3]} 41... Qf5 {[%clk
0:00:59.1]} 42. Qe8+ {[%clk 0:00:18]} 42... Qf7 {[%clk 0:01:00.1]} 43. Qe4+
{[%clk 0:00:16.3]} 43... Kg7 {[%clk 0:01:00.6]} 44. Qe5+ {[%clk 0:00:16.5]}
44... Qf6 {[%clk 0:00:58.9]} 45. Qc7+ {[%clk 0:00:17.2]} 45... Qf7 {[%clk
0:01:00.6]} 46. Qe5+ {[%clk 0:00:17.1]} 46... Kh6 {[%clk 0:00:59.6]} 47. b5
{[%clk 0:00:11.5]} 47... cxb5 {[%clk 0:00:59.5]} 48. Qxb5 {[%clk 0:00:13.3]}
48... Qe7 {[%clk 0:00:46]} 49. a6 {[%clk 0:00:09.8]} 49... bxa6 {[%clk
0:00:44.8]} 50. Qxa6+ {[%clk 0:00:11.7]} 50... Kg7 {[%clk 0:00:45.8]} 51. Qd3
{[%clk 0:00:12.5]} 51... Qf6 {[%clk 0:00:45.2]} 52. Qf3 {[%clk 0:00:12]} 52...
Qg6 {[%clk 0:00:39.3]} 53. Qb7+ {[%clk 0:00:11.8]} 53... Kh6 {[%clk 0:00:40.1]}
54. Qd5 {[%clk 0:00:12]} 54... Qf6 {[%clk 0:00:38]} 55. Qf3 {[%clk 0:00:12.2]}
55... Kg6 {[%clk 0:00:36.9]} 56. Qxf6+ {[%clk 0:00:12.6]} 56... Kxf6 {[%clk
0:00:38.8]} 57. Kf3 {[%clk 0:00:13.9]} 57... Kf5 {[%clk 0:00:39.7]} 58. g4+
{[%clk 0:00:15]} 58... hxg4+ {[%clk 0:00:39.4]} 59. Kg3 {[%clk 0:00:16]} 59...
Kg6 {[%clk 0:00:37.7]} 60. Kxg4 {[%clk 0:00:17.8]} 60... Kf6 {[%clk 0:00:39]}
61. f4 {[%clk 0:00:16.2]} 61... gxf4 {[%clk 0:00:39.6]} 62. Kxf4 {[%clk
0:00:18]} 1/2-1/2

[Event "*** MasterClass Titled Tuesday Blitz"]
[Site "Chess.com"]
[Date "2017.12.05"]
[Round "10"]
[White "josmito10"]
[Black "Bryakin_Mikhail"]
[Result "1-0"]
[WhiteElo "2481"]
[BlackElo "2539"]
[TimeControl "180+2"]
[EndTime "16:30:30 PST"]
[Termination "josmito10 won on time"]

1. d4 {[%clk 0:03:01.9]} 1... d5 {[%clk 0:03:00.3]} 2. c4 {[%clk 0:03:03.5]}
2... c6 {[%clk 0:03:01.5]} 3. Nf3 {[%clk 0:03:04.9]} 3... Nf6 {[%clk 0:03:02.8]}
4. Qc2 {[%clk 0:03:06.5]} 4... a6 {[%clk 0:03:01.7]} 5. Bf4 {[%clk 0:03:04.3]}
5... b5 {[%clk 0:03:01.1]} 6. cxd5 {[%clk 0:03:03.5]} 6... cxd5 {[%clk
0:03:00.9]} 7. e3 {[%clk 0:03:04.3]} 7... Bb7 {[%clk 0:03:00.2]} 8. Bd3 {[%clk
0:02:56.3]} 8... e6 {[%clk 0:03:01.2]} 9. O-O {[%clk 0:02:56.4]} 9... Bd6 {[%clk
0:03:02.3]} 10. Bxd6 {[%clk 0:02:57.7]} 10... Qxd6 {[%clk 0:03:04.2]} 11. Ne5
{[%clk 0:02:58.9]} 11... Nbd7 {[%clk 0:03:04.5]} 12. f4 {[%clk 0:03:00.5]} 12...
O-O {[%clk 0:03:01.9]} 13. Qe2 {[%clk 0:02:55.3]} 13... Ne4 {[%clk 0:03:00.8]}
14. Nd2 {[%clk 0:02:53.2]} 14... Nxd2 {[%clk 0:02:58.6]} 15. Qxd2 {[%clk
0:02:54]} 15... f6 {[%clk 0:02:54.9]} 16. Nf3 {[%clk 0:02:34.7]} 16... Rac8
{[%clk 0:02:55.2]} 17. Rac1 {[%clk 0:02:28.1]} 17... f5 {[%clk 0:02:44.9]} 18.
Qa5 {[%clk 0:02:13.5]} 18... g6 {[%clk 0:02:31.6]} 19. a4 {[%clk 0:02:09.1]}
19... bxa4 {[%clk 0:02:23.3]} 20. Qxa4 {[%clk 0:02:10.3]} 20... Nb6 {[%clk
0:02:20.5]} 21. Qb3 {[%clk 0:02:05.1]} 21... Rxc1 {[%clk 0:02:06.8]} 22. Rxc1
{[%clk 0:02:05.1]} 22... Rc8 {[%clk 0:02:08.7]} 23. Rxc8+ {[%clk 0:02:05.7]}
23... Bxc8 {[%clk 0:02:10.6]} 24. Ne5 {[%clk 0:02:06.4]} 24... Kg7 {[%clk
0:02:04.7]} 25. Qc3 {[%clk 0:01:58.6]} 25... Bb7 {[%clk 0:01:54.2]} 26. Qa5
{[%clk 0:01:59.4]} 26... Nc4 {[%clk 0:01:36.3]} 27. Nxc4 {[%clk 0:01:45.6]}
27... dxc4 {[%clk 0:01:38.2]} 28. Bxc4 {[%clk 0:01:47.2]} 28... Qc6 {[%clk
0:01:31.3]} 29. Bf1 {[%clk 0:01:42.9]} 29... Kf7 {[%clk 0:01:07.1]} 30. Qe5
{[%clk 0:01:38]} 30... Kg8 {[%clk 0:01:04]} 31. h4 {[%clk 0:01:36.5]} 31... Kf7
{[%clk 0:01:01]} 32. h5 {[%clk 0:01:14]} 32... gxh5 {[%clk 0:00:57.7]} 33. Qh8
{[%clk 0:01:14.9]} 33... Qe4 {[%clk 0:00:58.6]} 34. Qxh7+ {[%clk 0:01:14.5]}
34... Kf8 {[%clk 0:00:59.9]} 35. Kf2 {[%clk 0:01:00.1]} 35... Qc2+ {[%clk
0:00:56.1]} 36. Be2 {[%clk 0:00:58.2]} 36... Qxb2 {[%clk 0:00:55.5]} 37. Qh6+
{[%clk 0:00:52.2]} 37... Ke7 {[%clk 0:00:50.7]} 38. Qxh5 {[%clk 0:00:52.9]}
38... Bd5 {[%clk 0:00:49]} 39. Qh7+ {[%clk 0:00:46.9]} 39... Kf6 {[%clk
0:00:41.8]} 40. g4 {[%clk 0:00:40.1]} 40... fxg4 {[%clk 0:00:39.4]} 41. Qh6+
{[%clk 0:00:37.4]} 41... Kf7 {[%clk 0:00:36.9]} 42. Qh5+ {[%clk 0:00:37.3]}
42... Ke7 {[%clk 0:00:37.4]} 43. Qxg4 {[%clk 0:00:33.1]} 43... Bc4 {[%clk
0:00:21.3]} 44. Qg7+ {[%clk 0:00:34.1]} 44... Ke8 {[%clk 0:00:21.7]} 45. Qh8+
{[%clk 0:00:27.6]} 45... Ke7 {[%clk 0:00:21.5]} 46. Qh4+ {[%clk 0:00:26.9]}
46... Kd7 {[%clk 0:00:14.9]} 47. Qh7+ {[%clk 0:00:24.8]} 47... Ke8 {[%clk
0:00:10.5]} 48. Qh5+ {[%clk 0:00:22.6]} 48... Kd7 {[%clk 0:00:06.6]} 49. Ke1
{[%clk 0:00:15.7]} 49... Qc1+ {[%clk 0:00:05]} 50. Kf2 {[%clk 0:00:16.8]} 50...
Qb2 {[%clk 0:00:06.2]} 51. Qf3 {[%clk 0:00:17]} 51... a5 {[%clk 0:00:04.5]} 52.
f5 {[%clk 0:00:17.5]} 1-0